Cogmind - Beta 13 @@@ ROGUE MODE // 2024.05.05 @ 15:39:03 Player: Lunace Result: Destroyed by Y-54 Guardian with Gatling Laser Performance ------------- Evolutions (4) 2000 Regions Visited (18) 3600 Robots Destroyed (163) 815 Value Destroyed (9940) 9940 Prototype IDs (37) 740 Alien Tech Used (0) 0 Bonus (8323) 8323 TOTAL SCORE: 25418 Bonus ------- High Alert Combat Kills 1644 Follower Combat Kills 3332 Entered Garrisons 800 Used RIF Installer 2500 Aligned with FarCom 300 Met Data Miner 300 Friendly Fire -553 Cogmind --------- Core Integrity 0/850 Matter 59/300 Energy 78/100 System Corruption 5% Temperature Cool (6) Movement Core (50) Location -6/Factory Parts ------- > --- POWER (2) -------- (None) > --- PROPULSION (4) --- (None) > --- UTILITY (7) ------ Advanced Signal Interpreter Relay Coupler [NC] (22) Relay Coupler [Grunt] (33) Relay Coupler [Sentry] (19) Relay Coupler [Specialist] (19) Relay Coupler [Heavy] (12) > --- WEAPON (2) ------- Remote Datajack > --- INVENTORY (5) ---- Medium Storage Unit Relay Coupler [Swarmer] (44) Relay Coupler [Duelist] (25) Relay Coupler [Duelist] (24) Peak State ------------ > --- POWER ------------ Improved Deuterium Engine Improved Deuterium Engine > --- PROPULSION ------- Medium Treads Armored Wheel Armored Huge Wheel > --- UTILITY ---------- Huge Storage Unit Advanced Signal Interpreter Hardened Medium Armor Plating Improved Medium Armor Plating Relay Coupler [Specialist] Relay Coupler [Hunter] Relay Coupler [Heavy] > --- WEAPON ----------- Hypervelocity Gauss Cannon Remote Datajack > --- INVENTORY -------- Nanoactuators Hardened Medium Armor Plating Improved Light Armor Plating Improved Medium Armor Plating Relay Coupler [Duelist] Relay Coupler [Duelist] Relay Coupler [Demolisher] Long-range Tractor Beam Missile Launcher Long-range Missile Launcher Remote Datajack Welding Torch Longsword +1 [Rating: 66] Favorites ----------- Power Improved Deuterium Engine Engine Improved Deuterium Engine Power Core Neutrino Core Propulsion Light Treads Treads Light Treads Leg Improved Titanium Leg Wheel Armored Wheel Utility Huge Storage Unit Device Long-range Tractor Beam Storage Huge Storage Unit Processor Advanced Signal Interpreter Hackware Relay Coupler [Grunt] Protection Improved Light Armor Plating Weapon Longsword +1 Ballistic Gun Light Assault Rifle Ballistic Cannon Hypervelocity Gauss Cannon Launcher Missile Launcher Special Weapon Remote Datajack Slashing Weapon Longsword +1 Build | -11 -10 -10 -10 -9 -8 -8 -8 -8 -8 -8 -7 -7 -7 -7 -6 -6 -6 -6 ------- Run | Yrd Mat Min Exi Min Mat Gar Mat Gar Mat Gar Fac Low Low Dat Pro Fac Gar Fac Slots Evolved 8 | . . . . . 4 . . . . . 2 . . . . 2 . . Power 1 | . . . . . . . . . . . . . . . . 1 . . Propulsion 2 | . . . . . 2 . . . . . . . . . . . . . Utility 5 | . . . . . 2 . . . . . 2 . . . . 1 . . Weapon . | . . . . . . . . . . . . . . . . . . . Parts Attached 244 | 7 13 . 1 6 11 16 35 25 10 23 25 . 1 . 5 38 17 11 Power 20 | 1 3 . . 1 . 2 1 1 . 2 . . . . . 5 4 . Engine 13 | 1 3 . . 1 . 2 1 1 . . . . . . . 3 1 . Core 7 | . . . . . . . . . . 2 . . . . . 2 3 . Reactor . | . . . . . . . . . . . . . . . . . . . Propulsion 46 | 2 2 . . 1 5 5 7 8 1 1 6 . . . 2 4 . 2 Treads 27 | 2 2 . . 1 4 4 5 3 . 1 2 . . . 1 2 . . Leg 4 | . . . . . . . . . . . 2 . . . . . . 2 Wheel 15 | . . . . . 1 1 2 5 1 . 2 . . . 1 2 . . Hover . | . . . . . . . . . . . . . . . . . . . Flight . | . . . . . . . . . . . . . . . . . . . Utility 134 | 2 5 . 1 1 6 6 20 16 9 16 17 . 1 . 3 20 4 7 Device 14 | 1 2 . 1 . 1 . . . . 1 2 . . . . 5 . 1 Storage 7 | 1 3 . . . 1 1 . . . . . . . . . . . 1 Processor 4 | . . . . . 1 . . 1 . . 1 . . . . 1 . . Hackware 64 | . . . . . . 2 15 9 7 7 11 . 1 . 2 4 1 5 Protection 45 | . . . . 1 3 3 5 6 2 8 3 . . . 1 10 3 . Artifact . | . . . . . . . . . . . . . . . . . . . Weapon 44 | 2 3 . . 3 . 3 7 . . 4 2 . . . . 9 9 2 Energy Gun . | . . . . . . . . . . . . . . . . . . . Energy Cannon . | . . . . . . . . . . . . . . . . . . . Ballistic Gun 9 | 2 2 . . 2 . 1 2 . . . . . . . . . . . Ballistic Cannon 9 | . 1 . . . . . . . . 1 1 . . . . 3 3 . Launcher 10 | . . . . . . . 1 . . . . . . . . 5 3 1 Special Weapon 13 | . . . . . . 2 4 . . 3 . . . . . 1 2 1 Impact Weapon . | . . . . . . . . . . . . . . . . . . . Slashing Weapon 3 | . . . . 1 . . . . . . 1 . . . . . 1 . Piercing Weapon . | . . . . . . . . . . . . . . . . . . . Special Melee Weapon . | . . . . . . . . . . . . . . . . . . . Unidentified Prototypes 1 | . . . . . . . 1 . . . . . . . . . . . Parts Lost 47 | . 1 . . 1 . . 3 4 1 3 1 . . . 4 5 11 13 Power 7 | . . . . . . . . 1 . . . . . . 1 . 3 2 Propulsion 16 | . . . . . . . 1 3 1 1 1 . . . 1 2 3 3 Utility 16 | . 1 . . . . . 1 . . 2 . . . . 2 3 2 5 Weapon 8 | . . . . 1 . . 1 . . . . . . . . . 3 3 Highest Loss Streak 9 | . 1 . . 1 . . 1 2 1 2 1 . . . 3 2 9 9 To Critical Strikes . | . . . . . . . . . . . . . . . . . . . Average Slot Usage (%) 92 | . 99 100 100 95 87 94 87 95 96 93 93 100 100 100 84 92 79 68 Engine 7 | . 14 14 14 14 9 9 9 9 9 1 . . . . . 10 2 . Core 2 | . . . . . . . . . . 7 7 7 7 7 4 1 7 9 Treads 16 | . 27 28 28 28 35 25 17 18 9 11 7 7 7 7 8 5 8 4 Wheel 10 | . . . . . . 5 11 16 26 20 17 23 23 23 19 15 2 . Device 4 | . 14 14 14 5 . . . . . . . . . . . 5 15 11 Storage 9 | . 14 14 14 14 9 9 9 9 9 9 7 7 7 7 7 6 6 5 Processor 2 | . . . . . 3 6 . . . . . 7 7 7 1 3 6 6 Hackware 11 | . . . . . . . 19 10 17 19 23 30 30 30 20 15 3 7 Protection 8 | . . . . 8 11 19 2 12 6 5 8 . . . 5 14 10 9 Ballistic Gun 3 | . 18 14 14 9 9 4 1 . . . . . . . . . . . Ballistic Cannon 2 | . 9 14 14 1 . . . . . 1 . . . . . 3 4 4 Special Weapon 5 | . . . . . . 4 7 9 9 7 7 7 7 7 7 3 4 5 Slashing Weapon 5 | . . . . 13 9 9 9 9 9 9 6 7 7 7 7 . . . Naked Turns . | . . . . . . . . . . . . . . . . . . . Heaviest Build 138 | 13 31 31 31 36 64 107 107 117 117 122 115 100 100 100 103 138 131 113 Greatest Support 80 | 40 40 40 40 40 80 80 40 52 40 40 40 40 40 40 56 56 48 33 Greatest Overweight (x) 32 | . . . . . . 3 9 6 3 5 9 2 2 2 3 10 5 32 Average Overweight (x) 2 | . . . . . . 1 3 3 2 3 2 2 2 2 2 2 4 2 Largest Inventory Capacity 25 | 8 15 15 15 15 20 25 25 25 25 25 25 25 25 25 25 25 25 25 Average Capacity 22 | 7 10 15 15 15 19 22 25 25 25 25 25 25 25 25 25 25 25 23 Most Carried 25 | 3 14 10 11 14 15 25 25 25 25 25 25 22 23 22 22 19 23 22 Average Carried 17 | 1 6 10 10 12 12 21 17 20 21 22 23 21 22 22 20 14 19 18 Final Capacity 25 | 8 15 15 15 15 20 25 25 25 25 25 25 25 25 25 25 25 25 5 Final Carried 25 | 3 10 10 11 14 15 25 13 24 20 25 21 22 22 22 20 15 21 4 Class Distribution -------------------- 34% | Botlord-Mutant 33% | Bothacker-Mutant 16% | Mutant 14% | Scavenger-Mutant Dominant Class ---------------- Mutant | -10/Materials Mutant | -10/Mines Mutant | -10/Exiles Scavenger-Mutant | -9/Mines Scavenger-Mutant | -8/Materials Scavenger-Mutant | -8/Garrison Bothacker-Mutant | -8/Materials Bothacker-Mutant | -8/Garrison Bothacker-Mutant | -8/Materials Bothacker-Mutant | -8/Garrison Botlord-Mutant | -7/Factory Botlord-Mutant | -7/Lower Caves Botlord-Mutant | -7/Lower Caves Botlord-Mutant | -7/Data Miner Botlord-Mutant | -6/Proximity Caves Bothacker-Mutant | -6/Factory Botlord-Mutant | -6/Garrison Botlord-Mutant | -6/Factory Resources | -11 -10 -10 -10 -9 -8 -8 -8 -8 -8 -8 -7 -7 -7 -7 -6 -6 -6 -6 ----------- Run | Yrd Mat Min Exi Min Mat Gar Mat Gar Mat Gar Fac Low Low Dat Pro Fac Gar Fac Matter Collected 5251 | 247 570 . 75 103 107 236 642 406 196 352 510 . 10 . 59 892 730 116 Remotely 1506 | . 479 . . . . . . . . . . . . . . 297 730 . Salvage Created 6344 | 10 544 . . 261 284 1005 520 621 303 825 253 21 . . 58 807 730 102 Parts 319 | 3 39 . . 13 19 49 30 24 14 29 12 6 . . 2 46 30 3 Haulers Intercepted 5 | . 2 . . . . . 2 . . . . . . . . 1 . . Recyclers Shooed . | . . . . . . . . . . . . . . . . . . . Parts Field Recycled . | . . . . . . . . . . . . . . . . . . . Retrieved Matter . | . . . . . . . . . . . . . . . . . . . Parts Self-Destructed 12 | . . . . . . . . . . . . 1 5 . 6 . . . Prevented 4 | . . . . . . . . . . . . 4 . . . . . . Kills | -11 -10 -10 -10 -9 -8 -8 -8 -8 -8 -8 -7 -7 -7 -7 -6 -6 -6 -6 ------- Run | Yrd Mat Min Exi Min Mat Gar Mat Gar Mat Gar Fac Low Low Dat Pro Fac Gar Fac Combat Hostiles Destroyed 135 | . 14 . . 10 4 26 8 8 4 15 3 1 . . 1 17 21 3 Melee 73 | . . . . 8 4 24 7 8 4 15 1 1 . . 1 . . . Guns 11 | . 9 . . . . 1 1 . . . . . . . . . . . Cannons 18 | . 5 . . 2 . . . . . . 2 . . . . 5 4 . AOE 32 | . . . . . . 1 . . . . . . . . . 12 16 3 Classes Destroyed 18 | 1 5 . . 3 . 2 5 . . . . 1 . . . . 1 . Worker 5 | . . . . 2 . . 1 . 1 . 1 . . . . . . . Builder 10 | . . . . . . . 1 . . . 1 . . . . 8 . . Tunneler 4 | 1 1 . . 1 . . . . . . 1 . . . . . . . Hauler 5 | . 2 . . . . . 2 . . . . . . . . 1 . . Recycler 6 | . 1 . . . 1 . 1 . 1 . 1 . . . . 1 . . Watcher 5 | . 2 . . . . . 1 1 . . 1 . . . . . . . Swarmer 30 | . 8 . . . . 7 . 3 . . 1 . . . . 4 7 . Cutter 3 | . . . . . . . 2 . . 1 . . . . . . . . Grunt 56 | . 6 . . . 3 10 2 2 3 7 1 . . . . 9 10 3 Brawler 7 | . . . . . . . 1 2 . . 1 . . . 1 1 1 . Duelist 1 | . . . . . . . 1 . . . . . . . . . . . Sentry 21 | . . . . 2 1 4 1 1 1 7 . . . . . 3 1 . Demolisher 1 | . . . . . . . 1 . . . . . . . . . . . Specialist 3 | . . . . . . 2 . . . 1 . . . . . . . . Hunter 1 | . . . . . . . . . . . . . . . . . 1 . Programmer 4 | . . . . . . 3 . . . . . . . . . . 1 . Master Thief 1 | . . . . . . . . . . . . 1 . . . . . . Assembled 8 | . . . . 8 . . . . . . . . . . . . . . Best Kill Streak 12 | 1 4 . . 8 3 8 5 3 4 5 5 1 . . 1 12 12 3 Combat Bots Only 12 | . 4 . . 8 3 8 2 3 2 5 2 1 . . 1 6 12 3 Max Kills in Single Turn 5 | 1 1 . . 1 1 1 1 1 1 1 1 1 . . 1 5 2 3 Gunslinging . | . . . . . . . . . . . . . . . . . . . Exploded 5 | . . . . . . 1 . . . . . . . . . 5 2 3 Melee 1 | . . . . 1 1 1 1 1 1 1 1 1 . . 1 . . . Uniques/NPCs Destroyed . | . . . . . . . . . . . . . . . . . . . Combat | -11 -10 -10 -10 -9 -8 -8 -8 -8 -8 -8 -7 -7 -7 -7 -6 -6 -6 -6 -------- Run | Yrd Mat Min Exi Min Mat Gar Mat Gar Mat Gar Fac Low Low Dat Pro Fac Gar Fac Hostile Shots Fired 854 | . 83 . . 34 12 97 48 69 20 76 47 . 1 . 14 156 95 102 Missed 240 | . 23 . . 12 2 25 13 17 5 17 12 . . . 4 62 25 23 Damage Taken 10183 | . 548 . . 344 148 1112 999 678 271 904 534 . 14 . 199 1618 1342 1472 Core 1641 | . 86 . . 102 . 92 175 22 45 177 49 . . . 36 125 165 567 Absorbed by Shields 20 | . . . . . . . . . . . . . . . . . . 20 Regen/Repaired (Parts) 974 | . 116 . . . . . 355 . 105 199 118 . . . . 81 . . Core Remaining (%) 54 | 100 . . . 24 . . . . . 7 . . . . 87 . . . Volleys Fired 389 | 7 65 . . 9 3 12 61 18 12 29 43 . . . 6 57 66 1 Largest 2 | 2 2 . . 2 1 1 1 1 1 1 1 . . . 1 2 1 1 Hottest 79 | 40 55 . . 55 23 23 28 5 5 61 61 . . . 5 79 61 43 Shots Fired 466 | 14 130 . . 9 3 12 61 18 12 29 43 . . . 6 61 67 1 Gun 126 | 14 95 . . 1 3 4 9 . . . . . . . . . . . Cannon 113 | . 35 . . 8 . . . . . 1 5 . . . . 23 41 . Launcher 46 | . . . . . . . . . . . . . . . . 21 24 1 Special 181 | . . . . . . 8 52 18 12 28 38 . . . 6 17 2 . Kinetic 239 | 14 130 . . 9 3 4 9 . . 1 5 . . . . 23 41 . Thermal . | . . . . . . . . . . . . . . . . . . . Explosive 34 | . . . . . . . . . . . . . . . . 21 12 1 Electromagnetic 12 | . . . . . . . . . . . . . . . . . 12 . Robot Hit Streak 13 | 4 9 . . 2 3 7 7 9 6 7 8 . . . 3 13 6 5 Robot Miss Streak 6 | 3 4 . . 2 . 1 2 1 1 2 6 . . . 3 4 2 . Penetration Max 1 | . . . . . . . . . . . 1 . . . . . 1 . Secondary Targets 1 | . 1 . . . . . . . . . . . . . . . . . Max Gunslinging Chain 1 | . 1 . . . . . . . . . . . . . . . . . Shots Hit Robots 500 | 8 69 . . 24 9 67 62 56 22 72 31 1 1 . 4 41 32 1 Core Hits 230 | 3 33 . . 11 4 24 11 13 6 20 6 1 . . 1 51 43 3 Critical Kills 11 | . . . . . . . . . . . 1 . . . . 6 4 . Critical Parts Destroyed 14 | . . . . . . . . . . . 2 . . . . 4 8 . Critical Strikes 44 | . 1 . . . . 5 2 4 . 7 3 . . . . 10 12 . Destroy 25 | . . . . . . . . . . . 3 . . . . 10 12 . Blast 1 | . 1 . . . . . . . . . . . . . . . . . Sever 18 | . . . . . . 5 2 4 . 7 . . . . . . . . Melee Attacks 317 | . . . . 21 7 89 28 68 12 76 7 2 1 . 1 . 5 . Impact . | . . . . . . . . . . . . . . . . . . . Slashing 317 | . . . . 21 7 89 28 68 12 76 7 2 1 . 1 . 5 . Piercing . | . . . . . . . . . . . . . . . . . . . Sneak Attacks 29 | . . . . 3 1 3 4 3 5 5 4 . 1 . . . . . Combat Hostiles 10 | . . . . . . 3 . 1 3 2 . . 1 . . . . . Follow-up Attacks . | . . . . . . . . . . . . . . . . . . . Damage Inflicted 18653 | 55 744 . . 1278 403 2949 1225 2292 782 2875 563 50 72 . 30 2936 2229 170 Guns 598 | 55 395 . . . 26 14 108 . . . . . . . . . . . Cannons 996 | . 349 . . 88 . . . . . . 76 . . . . 256 227 . Explosions 4924 | . . . . . . 46 . . . 26 . . . . . 2680 2002 170 Melee 12122 | . . . . 1190 364 2889 1117 2292 782 2849 487 50 72 . 30 . . . Ramming 13 | . . . . . 13 . . . . . . . . . . . . . Kinetic 1594 | 55 744 . . 88 26 14 108 . . . 76 . . . . 256 227 . Thermal 504 | . . . . . . . . . . . . . . . . 469 35 . Explosive 3728 | . . . . . . 46 . . . 26 . . . . . 2211 1275 170 Electromagnetic 692 | . . . . . . . . . . . . . . . . . 692 . Impact . | . . . . . . . . . . . . . . . . . . . Slashing 12122 | . . . . 1190 364 2889 1117 2292 782 2849 487 50 72 . 30 . . . Piercing . | . . . . . . . . . . . . . . . . . . . Highest Corruption 9 | . 1 1 1 1 . 1 1 8 8 8 . . . . 9 2 1 5 Average Corruption 3 | . 1 1 1 1 . 1 1 7 8 6 . . . . 9 1 1 3 Corruption Purged 11 | . . . . . . . . . . 8 . . . . . 2 1 . Corruption Blocked . | . . . . . . . . . . . . . . . . . . . Effects 139 | . 9 6 2 11 . 2 8 62 8 12 . . . . 13 1 3 2 Message Errors 35 | . 1 2 . 3 . . . 18 2 5 . . . . 3 . 1 . Matter Fused 32 | . 2 1 1 2 . 1 3 10 4 2 . . . . 6 . . . Heat Flow Errors 19 | . 3 1 . 1 . . 2 8 . 1 . . . . 2 . . 1 Energy Discharges 21 | . 1 1 . 4 . . 3 8 1 1 . . . . . 1 . 1 Parts Rejected 4 | . . . . . . . . 2 . 1 . . . . . . 1 . Parts Fused 2 | . . . . . . . . 1 . . . . . . 1 . . . Data Loss (minor) 18 | . 1 1 1 . . . . 11 1 2 . . . . 1 . . . Data Loss (major) 4 | . 1 . . . . . . 3 . . . . . . . . . . Misfires 1 | . . . . . . . . . . . . . . . . . 1 . Alerts 2 | . . . . . . 1 . 1 . . . . . . . . . . Weapon Failures 1 | . . . . 1 . . . . . . . . . . . . . . Overload Shots . | . . . . . . . . . . . . . . . . . . . Overflow Damage 1367 | . . . . 194 38 179 179 179 79 336 120 . 17 . . 24 13 9 Projectiles 3 | . . . . . . . . . . . . . . . . . 3 . Explosions 43 | . . . . . . . . . . . . . . . . 24 10 9 Melee 1321 | . . . . 194 38 179 179 179 79 336 120 . 17 . . . . . Knockbacks 8 | . 2 . . 3 . . . . . . 1 . . . . . 2 . Impact . | . . . . . . . . . . . . . . . . . . . Kinetic 7 | . 2 . . 2 . . . . . . 1 . . . . . 2 . Secondary 1 | . . . . 1 . . . . . . . . . . . . . . Self-Inflicted Damage 531 | . . . . . . 51 . . . . . . . . . 246 195 39 Shots 22 | . . . . . . 1 . . . . . . . . . 6 14 1 Rammed 2 | . . . . . 1 . 1 . . . . . . . . . . . Targets Rammed 2 | . . . . . 1 . 1 . . . . . . . . . . . Kicked . | . . . . . . . . . . . . . . . . . . . Crushed . | . . . . . . . . . . . . . . . . . . . Highest Temperature 270 | . 250 124 . 205 18 13 204 270 3 260 110 . . . 187 192 144 133 Average Temperature 62 | . 37 68 . 95 11 6 89 117 3 99 55 . . . 91 65 38 64 Received Heat Transfer 2440 | . 144 . . 58 90 414 153 99 117 306 90 . . . 12 312 276 369 Effects 2 | . 1 . . . . . . 1 . . . . . . . . . . Energy Bleed 2 | . 1 . . . . . . 1 . . . . . . . . . . Siege Activations . | . . . . . . . . . . . . . . . . . . . Robots Corrupted 1 | . . . . . . . . . . . . . . . . . 1 . Combat Hostiles 1 | . . . . . . . . . . . . . . . . . 1 . Parts Fried 3 | . . . . . . . . . . . . . . . . . 3 . Impact Corruptions . | . . . . . . . . . . . . . . . . . . . Robots Melted . | . . . . . . . . . . . . . . . . . . . Combat Hostiles . | . . . . . . . . . . . . . . . . . . . Parts Melted 1 | . . . . . . 1 . . . . . . . . . . . . Heat Transferred 400 | . . . . . . . . . . . . . . . . 350 50 . Parts Sabotaged . | . . . . . . . . . . . . . . . . . . . Parts Stolen . | . . . . . . . . . . . . . . . . . . . Parts Stripped . | . . . . . . . . . . . . . . . . . . . Power Chain Reactions 1 | . . . . . . . . . . . . . . . . . 1 . Alert | -11 -10 -10 -10 -9 -8 -8 -8 -8 -8 -8 -7 -7 -7 -7 -6 -6 -6 -6 ------- Run | Yrd Mat Min Exi Min Mat Gar Mat Gar Mat Gar Fac Low Low Dat Pro Fac Gar Fac Peak Influence 1788 | 5 272 37 . 65 152 1538 922 1557 1378 1788 970 . . . . 667 880 462 Initial 938 | . 3 37 . . . 98 749 514 758 765 938 . . . . 150 383 462 Average 673 | 1 139 28 . 16 61 845 816 1036 1045 1248 810 . . . . 458 725 366 Maximum Alert Level 5 | . 1 . . . . 4 3 4 4 5 3 . . . . 2 3 2 Low Security (%) 24 | 100 93 100 . 100 100 8 . . . . . . . . . 13 . 11 Level 1 4 | . 6 . . . . 12 . . . . . . . . . 9 4 24 Level 2 18 | . . . . . . 16 2 15 . . 15 . . . . 76 28 64 Level 3 36 | . . . . . . 29 97 41 50 33 84 . . . . . 66 . Level 4 15 | . . . . . . 33 . 43 49 49 . . . . . . . . Level 5 1 | . . . . . . . . . . 17 . . . . . . . . High Security . | . . . . . . . . . . . . . . . . . . . Max Security . | . . . . . . . . . . . . . . . . . . . Squads Dispatched 31 | . 3 . . . 2 . 9 . 4 . 5 . . . . 7 . 1 Investigation 4 | . . . . . . . 1 . 1 . . . . . . 1 . 1 Extermination 2 | . . . . . . . . . . . 1 . . . . 1 . . Reinforcement 18 | . 3 . . . 2 . 2 . 3 . 3 . . . . 5 . . Assault 4 | . . . . . . . 3 . . . 1 . . . . . . . Garrison 3 | . . . . . . . 3 . . . . . . . . . . . Intercept . | . . . . . . . . . . . . . . . . . . . Searches Triggered . | . . . . . . . . . . . . . . . . . . . Construction Impeded 4 | . . . . . . . . . . . 1 . . . . 3 . . Haulers Reinforced . | . . . . . . . . . . . . . . . . . . . Active Scanning Responses . | . . . . . . . . . . . . . . . . . . . Cargo Convoy Interrupts . | . . . . . . . . . . . . . . . . . . . Alert ID Control Effect 21 | . . . . . . . . . . 4 8 . 2 . 1 6 . . Stealth | -11 -10 -10 -10 -9 -8 -8 -8 -8 -8 -8 -7 -7 -7 -7 -6 -6 -6 -6 --------- Run | Yrd Mat Min Exi Min Mat Gar Mat Gar Mat Gar Fac Low Low Dat Pro Fac Gar Fac Distress Signals 16 | . 1 . . . 1 . 3 1 3 1 2 . . . . 4 . . Communications Jammed . | . . . . . . . . . . . . . . . . . . . Distress Signals . | . . . . . . . . . . . . . . . . . . . Times Spotted 378 | . 25 . . 19 10 36 53 41 27 45 32 4 2 . 4 50 24 6 Peak Tracking Total 10 | . 4 . . 10 5 8 6 7 9 6 5 2 1 . 3 8 8 3 Tactical Retreats 19 | . 4 . . 4 . 2 1 4 . . 1 . . . . 3 . . Traps | -11 -10 -10 -10 -9 -8 -8 -8 -8 -8 -8 -7 -7 -7 -7 -6 -6 -6 -6 ------- Run | Yrd Mat Min Exi Min Mat Gar Mat Gar Mat Gar Fac Low Low Dat Pro Fac Gar Fac Traps Triggered 30 | . 1 . . . . 2 2 8 . 6 . . . . . 3 7 1 Indirectly 3 | . . . . . . . . . . . . . . . . . 3 . Trap Hack Attempts . | . . . . . . . . . . . . . . . . . . . Triggered . | . . . . . . . . . . . . . . . . . . . Disarmed . | . . . . . . . . . . . . . . . . . . . Reprogrammed . | . . . . . . . . . . . . . . . . . . . Reused 2 | . . . . . . . . . . . . . . . . 1 . 1 Traps Extracted . | . . . . . . . . . . . . . . . . . . . Installed 5 | . . . . . . . . . . . . . . . . 1 . 4 Triggered 4 | . . . . . . . . . . . . 2 . . . 1 . 1 Most Traps Carried 4 | . . . . . . . . . . . . . 1 1 1 1 4 4 Machines | -11 -10 -10 -10 -9 -8 -8 -8 -8 -8 -8 -7 -7 -7 -7 -6 -6 -6 -6 ---------- Run | Yrd Mat Min Exi Min Mat Gar Mat Gar Mat Gar Fac Low Low Dat Pro Fac Gar Fac Machines Disabled 69 | . 1 . . . . 9 5 7 . 13 7 1 . . . 20 6 . Max in Single Turn 5 | . 1 . . . . 2 1 1 . 2 . 1 . . . 5 1 . Garrison Relay 20 | . . . . . . 6 . 4 . 8 . . . . . . 2 . Phase Generator 2 | . . . . . . 1 . . . 1 . . . . . . . . Machines Repaired . | . . . . . . . . . . . . . . . . . . . Machines Dismantled . | . . . . . . . . . . . . . . . . . . . Machines Sabotaged . | . . . . . . . . . . . . . . . . . . . Overloaded Fab Kills . | . . . . . . . . . . . . . . . . . . . Hacking | -11 -10 -10 -10 -9 -8 -8 -8 -8 -8 -8 -7 -7 -7 -7 -6 -6 -6 -6 --------- Run | Yrd Mat Min Exi Min Mat Gar Mat Gar Mat Gar Fac Low Low Dat Pro Fac Gar Fac Machines Accessed 57 | . 5 . 2 . 3 3 9 3 5 3 10 . . 4 . 6 1 3 Terminals 33 | . 3 . . . 2 3 7 3 3 3 4 . . . . 3 1 1 Fabricators 6 | . . . . . . . . . . . 4 . . . . 1 . 1 Repair Stations 4 | . 1 . . . . . 1 . . . 1 . . . . 1 . . Recycling Units 4 | . 1 . . . . . . . 1 . 1 . . . . . . 1 Scanalyzers . | . . . . . . . . . . . . . . . . . . . Garrison Access 4 | . . . . . 1 . 1 . 1 . . . . . . 1 . . Total Hacks 149 | . 10 . 2 . 9 5 24 6 14 6 21 . . 27 . 16 1 8 Successful 89 | . 6 . 2 . 5 . 13 1 10 2 9 . . 27 . 10 1 3 Failed 60 | . 4 . . . 4 5 11 5 4 4 12 . . . . 6 . 5 Catastrophic 16 | . 2 . . . 1 3 3 . . 1 4 . . . . 1 . 1 Database Lockouts . | . . . . . . . . . . . . . . . . . . . Manual 73 | . 8 . 1 . 6 . 20 . 12 . 14 . . . . 10 . 2 Terminals 80 | . 6 . . . 8 5 19 6 10 6 9 . . . . 8 1 2 Fabricators 15 | . . . . . . . . . . . 7 . . . . 3 . 5 Repair Stations 11 | . 2 . . . . . 3 . . . 3 . . . . 3 . . Recycling Units 8 | . 2 . . . . . . . 3 . 2 . . . . . . 1 Scanalyzers . | . . . . . . . . . . . . . . . . . . . Garrison Access 6 | . . . . . 1 . 2 . 1 . . . . . . 2 . . Terminal Hacks 41 | . . . 2 . 3 . 1 1 2 2 2 . . 27 . . 1 . Record 9 | . . . 1 . . . . . . . . . . 8 . . . . Part Schematic 10 | . . . . . . . . . . . . . . 10 . . . . Robot Schematic 6 | . . . . . . . . . . . . . . 6 . . . . Robot Analysis 2 | . . . . . 2 . . . . . . . . . . . . . Prototype ID Bank 3 | . . . . . . . . . . . . . . 3 . . . . Emergency Access Points 3 | . . . . . . . . 1 . 1 . . . . . . 1 . Terminal Index 1 | . . . . . . . . . 1 . . . . . . . . . Garrison Index 1 | . . . . . . . . . 1 . . . . . . . . . Unreport Threat 2 | . . . . . . . 1 . . . 1 . . . . . . . Zone Layout 2 | . . . . . 1 . . . . . 1 . . . . . . . Security Stations 1 | . . . . . . . . . . 1 . . . . . . . . Derelict Proto ID Bank 1 | . . . 1 . . . . . . . . . . . . . . . Fabricator Hacks 6 | . . . . . . . . . . . 3 . . . . 1 . 2 Network Status 4 | . . . . . . . . . . . 3 . . . . 1 . . Load Schematic 1 | . . . . . . . . . . . . . . . . . . 1 Build 1 | . . . . . . . . . . . . . . . . . . 1 Repair Station Hacks 6 | . 2 . . . . . 2 . . . . . . . . 2 . . Scan Component 3 | . 1 . . . . . 1 . . . . . . . . 1 . . Repair 3 | . 1 . . . . . 1 . . . . . . . . 1 . . Recycling Unit Hacks 1 | . . . . . . . . . 1 . . . . . . . . . Report Inventory 1 | . . . . . . . . . 1 . . . . . . . . . Scanalyzer . | . . . . . . . . . . . . . . . . . . . Garrison Access Hacks 6 | . . . . . 1 . 2 . 1 . . . . . . 2 . . Unlock Access 4 | . . . . . 1 . 1 . 1 . . . . . . 1 . . Coupler Status 2 | . . . . . . . 1 . . . . . . . . 1 . . Unauthorized Hacks 28 | . 3 . . . 1 . 8 . 6 . 4 . . . . 5 . 1 Terminals 20 | . 1 . . . 1 . 7 . 4 . 2 . . . . 4 . 1 Botnet 16 | . . . . . 1 . 6 . 3 . 2 . . . . 3 . 1 Operators 4 | . 1 . . . . . 1 . 1 . . . . . . 1 . . Fabricators . | . . . . . . . . . . . . . . . . . . . Repair Stations 3 | . . . . . . . 1 . . . 1 . . . . 1 . . Mechanics 3 | . . . . . . . 1 . . . 1 . . . . 1 . . Recycling Units 5 | . 2 . . . . . . . 2 . 1 . . . . . . . Monitor 2 | . 1 . . . . . . . 1 . . . . . . . . . Recyclers 3 | . 1 . . . . . . . 1 . 1 . . . . . . . Scanalyzers . | . . . . . . . . . . . . . . . . . . . Garrison Access . | . . . . . . . . . . . . . . . . . . . Data Cores Recovered 2 | . . . . . . . 1 . . . 1 . . . . . . . Used . | . . . . . . . . . . . . . . . . . . . Hacking Detections 43 | . 4 . . . 2 3 7 3 4 3 9 . . . . 4 1 3 Full Trace Events 4 | . . . . . . 1 . . . 1 . . . . . 1 . 1 Feedback Events . | . . . . . . . . . . . . . . . . . . . Feedback Blocked . | . . . . . . . . . . . . . . . . . . . Robot Schematics Acquired 6 | . . . . . . . . . . . . . . 6 . . . . Robots Built . | . . . . . . . . . . . . . . . . . . . Authchips . | . . . . . . . . . . . . . . . . . . . Time . | . . . . . . . . . . . . . . . . . . . Total Robot Build Rating . | . . . . . . . . . . . . . . . . . . . Part Schematics Acquired 10 | . . . . . . . . . . . . . . 10 . . . . Parts Built . | . . . . . . . . . . . . . . . . . . . Authchips . | . . . . . . . . . . . . . . . . . . . Time 152 | . . . . . . . . . . . . . . . . . . 152 Total Part Build Rating . | . . . . . . . . . . . . . . . . . . . Parts Repaired 3 | . 1 . . . . . 1 . . . . . . . . 1 . . Time 84 | . 26 . . . . . 26 . . . . . . . . 32 . . Parts Recycled . | . . . . . . . . . . . . . . . . . . . Recycled Matter . | . . . . . . . . . . . . . . . . . . . Retrieved Matter . | . . . . . . . . . . . . . . . . . . . Retrieved Components . | . . . . . . . . . . . . . . . . . . . Parts Scanalyzed . | . . . . . . . . . . . . . . . . . . . Part Schematics Acquired . | . . . . . . . . . . . . . . . . . . . Parts Damaged . | . . . . . . . . . . . . . . . . . . . Bothacking | -11 -10 -10 -10 -9 -8 -8 -8 -8 -8 -8 -7 -7 -7 -7 -6 -6 -6 -6 ------------ Run | Yrd Mat Min Exi Min Mat Gar Mat Gar Mat Gar Fac Low Low Dat Pro Fac Gar Fac Used RIF Installer 5 | . . . . . . 1 . 1 . 2 . . . . . . 1 . Threat Obfuscator 1 | . . . . . . . . 1 . . . . . . . . . . Zone Cloak 1 | . . . . . . . . . . 1 . . . . . . . . Patrol Navigation 1 | . . . . . . . . . . . . . . . . . 1 . Alert ID Control 1 | . . . . . . . . . . 1 . . . . . . . . Robots Hacked 104 | . . . . . . . 33 16 10 7 21 . . . 3 12 2 . Non-combat 17 | . . . . . . . 9 . 3 . 5 . . . . . . . Combat 87 | . . . . . . . 24 16 7 7 16 . . . 3 12 2 . Robot Hacks Applied 105 | . . . . . . . 33 16 10 7 22 . . . 3 12 2 . find_chute 1 | . . . . . . . . . . . 1 . . . . . . . map_walls 1 | . . . . . . . . . . . 1 . . . . . . . drop_inventory 3 | . . . . . . . 3 . . . . . . . . . . . map_route 5 | . . . . . . . 3 . 1 . 1 . . . . . . . mark_security 1 | . . . . . . . . . . . 1 . . . . . . . find_shortcuts 1 | . . . . . . . . . . . 1 . . . . . . . link_fov 1 | . . . . . . . 1 . . . . . . . . . . . amplify_resonance 7 | . . . . . . . 2 1 1 . 1 . . . 1 1 . . disable_weapons 1 | . . . . . . . . . . . . . . . . 1 . . reboot_system 3 | . . . . . . . 1 . 1 . . . . . 1 . . . go_dormant 1 | . . . . . . . . . . . . . . . . 1 . . overwrite_iff 12 | . . . . . . . . 3 3 1 . . . . . 4 1 . formatsys_low 5 | . . . . . . . 2 . 2 . 1 . . . . . . . formatsys_high 63 | . . . . . . . 21 12 2 6 15 . . . 1 5 1 . Relay Couplers Released 83 | . . . . . . 29 . 17 . 29 . . . . . . 8 . Machine Destruction 79 | . . . . . . 25 . 17 . 29 . . . . . . 8 . Programmers 4 | . . . . . . 4 . . . . . . . . . . . . Attached 62 | . . . . . . 2 15 9 6 6 11 . 1 . 2 4 1 5 Fabnet Peak Effective % . | . . . . . . . . . . . . . . . . . . . Robots Rewired 11 | . . . . . . 4 . . . 7 . . . . . . . . Allies Hacked 2 | . . . . . . 1 . . . . 1 . . . . . . . Hacks Repelled . | . . . . . . . . . . . . . . . . . . . Allies | -11 -10 -10 -10 -9 -8 -8 -8 -8 -8 -8 -7 -7 -7 -7 -6 -6 -6 -6 -------- Run | Yrd Mat Min Exi Min Mat Gar Mat Gar Mat Gar Fac Low Low Dat Pro Fac Gar Fac Total Allies 93 | . . . . . . 4 23 16 7 14 16 . . . 2 9 2 . Largest Group 14 | . . . . . . 4 14 11 10 9 8 5 5 5 6 6 1 1 Highest-Rated Group 315 | . . . . . . 84 315 236 258 232 226 138 138 138 254 254 12 12 Highest-Rated Ally 96 | . . . . . . 21 90 40 90 90 90 32 32 32 96 96 12 12 Total Orders 51 | . . . . 2 1 . 19 15 1 9 1 . . . . . . 3 STAY 18 | . . . . . . . 9 8 . 1 . . . . . . . . ROAM 3 | . . . . . . . . . . 1 . . . . . . . 2 FOLLOW 18 | . . . . . . . 7 7 . 4 . . . . . . . . AID 9 | . . . . . . . 3 . 1 3 1 . . . . . . 1 EXPLORE 2 | . . . . 1 1 . . . . . . . . . . . . . RETURN 1 | . . . . 1 . . . . . . . . . . . . . . Ally Attacks 643 | . . . . . . 51 142 77 84 123 66 4 8 . 7 80 1 . Total Damage 13761 | . . . . . . 1049 2185 1389 1605 2471 2506 45 108 . 173 2230 . . Kills 142 | . . . . . . 9 27 18 26 24 18 . 2 . 4 14 . . Allies Corrupted 3 | . . . . . . . . . . 1 1 . . . . 1 . . Allies Melted 1 | . . . . . . . . . . . 1 . . . . . . . Intel | -11 -10 -10 -10 -9 -8 -8 -8 -8 -8 -8 -7 -7 -7 -7 -6 -6 -6 -6 ------- Run | Yrd Mat Min Exi Min Mat Gar Mat Gar Mat Gar Fac Low Low Dat Pro Fac Gar Fac Robot Analysis Total 2 | . . . . . 2 . . . . . . . . . . . . . Derelict Logs Recovered 5 | . . 1 . 1 . . . . . . . 3 . . . . . . Drone Launches 2 | . . . . 1 1 . . . . . . . . . . . . . Drone Recoveries 1 | . . . . 1 . . . . . . . . . . . . . . Exploration | -11 -10 -10 -10 -9 -8 -8 -8 -8 -8 -8 -7 -7 -7 -7 -6 -6 -6 -6 ------------- Run | Yrd Mat Min Exi Min Mat Gar Mat Gar Mat Gar Fac Low Low Dat Pro Fac Gar Fac Turns Passed 16885 | 94 1248 518 437 1120 363 1524 1393 1950 408 1621 1381 477 182 109 450 1466 1525 619 Spaces Moved 8748 | 42 626 316 272 611 116 779 724 1040 253 850 883 338 138 79 317 825 357 182 Core 84 | 3 . . . . . . . . . . . . . . . . . 81 Treads 2571 | 39 626 316 272 611 116 295 14 . . . . . . . . . 202 80 Legs 21 | . . . . . . . . . . . . . . . . . . 21 Wheels 6072 | . . . . . . 484 710 1040 253 850 883 338 138 79 317 825 155 . Hover . | . . . . . . . . . . . . . . . . . . . Flight . | . . . . . . . . . . . . . . . . . . . Fastest Speed 50 | 50 160 160 160 160 160 145 135 107 120 123 123 123 123 123 111 111 155 50 Average Speed 158 | 152 160 160 160 160 160 150 147 154 126 143 137 123 123 123 126 140 359 312 Slowest Speed 1650 | 160 160 160 160 160 160 160 320 190 135 165 225 123 123 123 140 240 560 1650 Overloaded Moves . | . . . . . . . . . . . . . . . . . . . Propulsion Burnouts . | . . . . . . . . . . . . . . . . . . . Robots Hopped . | . . . . . . . . . . . . . . . . . . . Cave-ins Triggered . | . . . . . . . . . . . . . . . . . . . Exploration Rate (%) 55 | 4 93 69 65 89 29 81 73 85 48 97 28 59 24 69 58 21 45 8 Regions Visited 18 Branch Regions 7 Pre-discovered Areas 2 | . . . 1 . . . . . . . . . . 1 . . . . Known Exits Taken 9 | . . . . 1 1 . 1 . 1 . 1 1 1 1 . 1 . . Unknown Exits Taken 5 | 1 1 1 1 . . . . . . . . . . . 1 . . . Scrap Searched 4 | . . . . 1 . . . . . . . 2 . . 1 . . . Spaces Dug 22 | . . . . . . 8 4 6 . 2 1 . . . . . 1 . Terrain Destroyed 359 | . . . . . . 76 4 6 . 54 1 . . . . 170 41 7 Melee 22 | . . . . . . 8 4 6 . 2 1 . . . . . 1 . Projectile . | . . . . . . . . . . . . . . . . . . . AOE 337 | . . . . . . 68 . . . 52 . . . . . 170 40 7 Terrain Rammed . | . . . . . . . . . . . . . . . . . . . Walls Destroyed . | . . . . . . . . . . . . . . . . . . . Machines Disabled . | . . . . . . . . . . . . . . . . . . . Actions | -11 -10 -10 -10 -9 -8 -8 -8 -8 -8 -8 -7 -7 -7 -7 -6 -6 -6 -6 --------- Run | Yrd Mat Min Exi Min Mat Gar Mat Gar Mat Gar Fac Low Low Dat Pro Fac Gar Fac Total 11105 | 58 764 329 274 722 283 1044 980 1311 323 1171 1019 397 148 91 361 1071 526 233 Wait 997 | . 37 14 . 71 137 65 114 92 31 100 49 57 8 13 30 131 48 . Move 8733 | 41 625 315 271 610 116 778 724 1039 252 849 882 337 137 78 316 825 356 182 Hop . | . . . . . . . . . . . . . . . . . . . Pick Up 156 | 3 10 . 1 2 2 36 4 28 1 29 4 1 1 . . 7 13 14 Fast Attach 74 | 7 3 . 1 1 3 1 12 11 1 3 10 . . . 3 10 4 4 Attach 88 | . 2 . . 1 6 5 16 9 3 9 9 . . . 2 12 7 7 Detach 11 | . 2 . . 1 3 . 1 . . 1 . . . . . 1 2 . Swap 82 | . 8 . . 4 2 10 7 5 6 11 6 . 1 . . 16 6 . Drop 140 | . 12 . 1 2 3 32 12 15 5 24 8 . . . 3 11 3 9 Fire 389 | 7 65 . . 9 3 12 61 18 12 29 43 . . . 6 57 66 1 Melee 317 | . . . . 21 7 89 28 68 12 76 7 2 1 . 1 . 5 . Ram . | . . . . . . . . . . . . . . . . . . . Kick . | . . . . . . . . . . . . . . . . . . . Crush 2 | . . . . . 1 . 1 . . . . . . . . . . . Escape Stasis 108 | . . . . . . 16 . 24 . 40 . . . . . . 16 12 Rewire 3 | . . . . . . . . 2 . . 1 . . . . . . . Trap 5 | . . . . . . . . . . . . . . . . 1 . 4 Miscellaneous . | . . . . . . . . . . . . . . . . . . . Route ------- -11/Scrapyard -10/Materials (discovered 4 exits: [*Mat x3] / [*Min]) -10/Mines (discovered 2 exits: [*Mat] / *Exi) -10/Exiles -9/Mines -8/Materials -8/Garrison (discovered 3 exits: *Mat x3) -8/Materials (discovered 6 exits: *Fac x3 / [*Sto x2] / Gar) -8/Garrison (discovered 4 exits: *Fac x3 / *Mat) -8/Materials (discovered 2 exits: [*Sto] / Gar) -8/Garrison (discovered 3 exits: *Fac x3) -7/Factory (discovered 2 exits: *Fac / *Low) -7/Lower Caves -7/Lower Caves -7/Data Miner -6/Proximity Caves -6/Factory (discovered 3 exits: *Fac / *Low / Gar) -6/Garrison -6/Factory History --------- Turn | Location | Event 33 | -11/Scrapyard | Discovered new exit (range 15) 95 | -11/Scrapyard | Entered Materials 267 | -10/Materials | Discovered new exit (range 12) 336 | -10/Materials | Build established: Mutant 707 | -10/Materials | Discovered new exit (range 15) 1030 | -10/Materials | Repaired Lgt. Treads 1225 | -10/Materials | Discovered new exit (range 9) 1296 | -10/Materials | Discovered new exit (range 16) 1343 | -10/Materials | Entered Mines 1372 | -10/Mines | Discovered new exit (range 16) 1505 | -10/Mines | Learned Materials machine intel 1849 | -10/Mines | Discovered new exit (range 7) 1861 | -10/Mines | Entered Exiles 1900 | -10/Exiles | Met 8R-AWN 1927 | -10/Exiles | Met EX-HEX 2025 | -10/Exiles | Met EX-BIN 2047 | -10/Exiles | Aligned with FarCom system 2049 | -10/Exiles | Given EX-Vault access code 2085 | -10/Exiles | Opened EX-Vault 2100 | -10/Exiles | Found Supersonic Drone Bay 2108 | -10/Exiles | Found Longsword +1 2141 | -10/Exiles | Warned to stay clear of 0b10 Research branches 2153 | -10/Exiles | Exiles lab attacked by MAIN.C 2207 | -10/Exiles | Learned location of Zion (-6) 2285 | -10/Exiles | Discovered new exit (range 10) 2298 | -10/Exiles | Stole two prototypes: Supersonic Drone Bay, Longsword +1 2298 | -10/Exiles | Entered Mines 2299 | -9/Mines | Assembled infested the area 2314 | -9/Mines | Core integrity fell below 50% 2410 | -9/Mines | Destroyed 8 combat bots 2419 | -9/Mines | Identified exit to Materials 2988 | -9/Mines | Build established: Scavenger-Mutant 3418 | -9/Mines | Entered Materials 3418 | -8/Materials | Evolved 4 slots: Propulsion x2, Utility x2 3419 | -8/Materials | Loaded intel: 55 machine locations 3781 | -8/Materials | Identified exit to Garrison 3781 | -8/Materials | Entered Garrison 3819 | -8/Garrison | Triggered checkpoint 3840 | -8/Garrison | Garrison Relay disabled 3991 | -8/Garrison | Destroyed 8 combat bots 4051 | -8/Garrison | Triggered checkpoint 4166 | -8/Garrison | Discovered new exit (range 12) 4209 | -8/Garrison | Garrison Relay disabled 4242 | -8/Garrison | Phase Generator disabled 4267 | -8/Garrison | Triggered checkpoint 4395 | -8/Garrison | Triggered checkpoint 4421 | -8/Garrison | Garrison Relay disabled 4423 | -8/Garrison | Triggered checkpoint 4775 | -8/Garrison | Triggered checkpoint 4797 | -8/Garrison | Triggered checkpoint 4840 | -8/Garrison | Discovered new exit (range 12) 4915 | -8/Garrison | Triggered checkpoint 4951 | -8/Garrison | Garrison Relay disabled 4978 | -8/Garrison | Garrison Relay disabled 5098 | -8/Garrison | Discovered new exit (range 10) 5204 | -8/Garrison | Installed Relay Interface Framework 5241 | -8/Garrison | Garrison Relay disabled 5305 | -8/Garrison | Entered Materials 5305 | -8/Materials | Accompanied by 2 allies 5510 | -8/Materials | Build established: Bothacker-Mutant 5532 | -8/Materials | Repaired Lgt. Treads 5705 | -8/Materials | First assault squad dispatched 5737 | -8/Materials | Discovered new exit (range 15) 5781 | -8/Materials | Garrison activated, responded to threat 5809 | -8/Materials | Discovered new exit (range 11) 5816 | -8/Materials | Lost 4 allies 6050 | -8/Materials | Discovered new exit (range 8) 6352 | -8/Materials | Discovered new exit (range 16) 6479 | -8/Materials | Discovered new exit (range 4) 6639 | -8/Materials | Lost 3 allies 6698 | -8/Materials | Identified exit to Garrison 6698 | -8/Materials | Entered Garrison 6698 | -8/Garrison | Accompanied by 1 ally 6780 | -8/Garrison | Triggered checkpoint 6841 | -8/Garrison | Discovered new exit (range 5) 6958 | -8/Garrison | Triggered checkpoint 7007 | -8/Garrison | Garrison Relay disabled 7074 | -8/Garrison | Garrison Relay disabled 7200 | -8/Garrison | Triggered checkpoint 7238 | -8/Garrison | Triggered checkpoint 7342 | -8/Garrison | Expanded RIF knowledge: Threat Obfuscation 7400 | -8/Garrison | Discovered new exit (range 14) 7454 | -8/Garrison | Triggered checkpoint 7522 | -8/Garrison | Triggered checkpoint 7558 | -8/Garrison | Garrison Relay disabled 7723 | -8/Garrison | Triggered checkpoint 7778 | -8/Garrison | Triggered checkpoint 7798 | -8/Garrison | Core integrity fell below 50% 7894 | -8/Garrison | Triggered checkpoint 7936 | -8/Garrison | Rescued a captive Derelict 8023 | -8/Garrison | Discovered new exit (range 8) 8138 | -8/Garrison | Triggered checkpoint 8185 | -8/Garrison | Garrison Relay disabled 8276 | -8/Garrison | Discovered new exit (range 13) 8648 | -8/Garrison | Entered Materials 8648 | -8/Materials | Accompanied by 10 allies 8857 | -8/Materials | Lost 3 allies 8946 | -8/Materials | Discovered new exit (range 13) 9033 | -8/Materials | Identified exit to Garrison 9056 | -8/Materials | Entered Garrison 9056 | -8/Garrison | Accompanied by 8 allies 9079 | -8/Garrison | Expanded RIF knowledge: Zone Cloak 9082 | -8/Garrison | Triggered checkpoint 9122 | -8/Garrison | Garrison Relay disabled 9402 | -8/Garrison | Triggered checkpoint 9536 | -8/Garrison | Triggered checkpoint 9584 | -8/Garrison | Triggered checkpoint 9590 | -8/Garrison | Lost 5 allies 9699 | -8/Garrison | Discovered new exit (range 12) 9810 | -8/Garrison | Garrison Relay disabled 9840 | -8/Garrison | Core integrity fell below 20% 9876 | -8/Garrison | Phase Generator disabled 10059 | -8/Garrison | Garrison Relay disabled 10074 | -8/Garrison | Triggered checkpoint 10108 | -8/Garrison | Discovered new exit (range 12) 10119 | -8/Garrison | Expanded RIF knowledge: Alert ID Control 10302 | -8/Garrison | Triggered checkpoint 10366 | -8/Garrison | Discovered new exit (range 12) 10386 | -8/Garrison | Triggered checkpoint 10414 | -8/Garrison | Garrison Relay disabled 10436 | -8/Garrison | Learned Factory security intel 10449 | -8/Garrison | Build established: Botlord-Mutant 10565 | -8/Garrison | Garrison Relay disabled 10603 | -8/Garrison | Garrison Relay disabled 10677 | -8/Garrison | Entered Factory 10677 | -7/Factory | Accompanied by 6 allies 10677 | -7/Factory | Evolved 2 slots: Utility x2 10679 | -7/Factory | FarCom data flow suspended 10785 | -7/Factory | Lost 3 allies 11019 | -7/Factory | Lost 3 allies 11077 | -7/Factory | First assault squad dispatched 11171 | -7/Factory | Lost 4 allies 11647 | -7/Factory | Discovered new exit (range 8) 11973 | -7/Factory | Discovered new exit (range 15) 12042 | -7/Factory | Identified exit to Lower Caves 12058 | -7/Factory | Entered Lower Caves 12058 | -7/Lower Caves | Accompanied by 5 allies 12058 | -7/Lower Caves | Spotted TY-FUB(f) 12058 | -7/Lower Caves | Spotted FV-4MB(f) 12058 | -7/Lower Caves | Destroyed TY-FUB(f) 12060 | -7/Lower Caves | Encountered a Master Thief 12077 | -7/Lower Caves | Identified exit to Lower Caves 12278 | -7/Lower Caves | Learned Factory garrison access intel 12379 | -7/Lower Caves | Learned Factory terminal intel 12449 | -7/Lower Caves | Encountered a Warlord checkpoint 12535 | -7/Lower Caves | Entered another Lower Caves area 12535 | -7/Lower Caves | Accompanied by 5 allies 12575 | -7/Lower Caves | Encountered a Warlord checkpoint 12696 | -7/Lower Caves | Discovered new exit (range 6) 12701 | -7/Lower Caves | Identified exit to Data Miner 12717 | -7/Lower Caves | Entered Data Miner 12717 | -7/Data Miner | Accompanied by 5 allies 12717 | -7/Data Miner | Discovered new exit (range 6) 12722 | -7/Data Miner | Identified exit to Proximity Caves 12741 | -7/Data Miner | Met Data Miner 12764 | -7/Data Miner | Learned location of Section 7 (-2) 12764 | -7/Data Miner | Acquired the access code to Warlord's prototype stash 12785 | -7/Data Miner | Received God Mode back door access code from Data Miner 12826 | -7/Data Miner | Entered Proximity Caves 12826 | -6/Proximity Caves | Accompanied by 5 allies 12830 | -6/Proximity Caves | Spotter reported a threat 12904 | -6/Proximity Caves | Attracted the attention of an 0b10 checkpoint 12911 | -6/Proximity Caves | Escorted by Enhanced Grunt 12940 | -6/Proximity Caves | Lost 3 parts (1n2u) 13254 | -6/Proximity Caves | Discovered new exit (range 5) 13276 | -6/Proximity Caves | Entered Factory 13276 | -6/Factory | Accompanied by 6 allies 13276 | -6/Factory | Evolved 2 slots: Power x1, Utility x1 13277 | -6/Factory | Loaded intel: 28 terminal locations 13278 | -6/Factory | Loaded intel: 4 garrison access locations 13401 | -6/Factory | Lost 4 allies 13587 | -6/Factory | Spotted B-75 Beast 13729 | -6/Factory | Discovered new exit (range 16) 13828 | -6/Factory | Discovered new exit (range 4) 13834 | -6/Factory | Identified exit to Lower Caves 13890 | -6/Factory | Identified exit to Factory 13974 | -6/Factory | Repaired Arm. Wheel 14302 | -6/Factory | Build established: Bothacker-Mutant 14742 | -6/Factory | Identified exit to Garrison 14742 | -6/Factory | Entered Garrison 14814 | -6/Garrison | Triggered checkpoint 14832 | -6/Garrison | Garrison Relay disabled 14888 | -6/Garrison | Triggered checkpoint 15042 | -6/Garrison | Triggered checkpoint 15042 | -6/Garrison | Triggered checkpoint 15053 | -6/Garrison | Triggered checkpoint 15113 | -6/Garrison | Lost 9 parts (2p2n2u3w) 15118 | -6/Garrison | Destroyed 12 combat bots 15136 | -6/Garrison | Build established: Botlord-Mutant 15246 | -6/Garrison | Triggered checkpoint 15500 | -6/Garrison | Expanded RIF knowledge: Patrol Navigation 15552 | -6/Garrison | Triggered checkpoint 15852 | -6/Garrison | Garrison Relay disabled 16194 | -6/Garrison | Discovered new exit (range 13) 16261 | -6/Garrison | Identified exit to Factory 16267 | -6/Garrison | Entered Factory 16267 | -6/Factory | Accompanied by 1 ally 16737 | -6/Factory | Core integrity fell below 50% 16769 | -6/Factory | Lost 9 parts (2p1n3u3w) 16829 | -6/Factory | Core integrity fell below 20% 16871 | -6/Factory | Lost 3 parts (1n2u) 16886 | -6/Factory | Destroyed by Y-54 Guardian with Gatling Laser Last Messages --------------- 16853_ Triggered Stasis Trap. 16853_ A bubble of rippling energy engulfs the area. 16853_ Field strength at 94. 16854_ Field strength at 88. 16855_ Field strength at 82. 16856_ Field strength at 76. 16857_ Field strength at 70. 16858_ Field strength at 56. 16859_ System corrupted: Heat flow error (+170). 16859_ Field strength at 50. 16860_ Field strength at 44. 16861_ Field strength at 34. 16862_ Field strength at 28. 16863_ Field strength at 22. 16864_ Field strength at 8. 16865_ Field strength at 2. 16866_ Stasis field depleted. 16877_ System corrupted: Energy discharge (-31). 16885_ Acquired Med. Storage Unit. Map ----- +----------------------------------------------------+ | ??????????????????????????????????????????? | | ??????????????????????????????????????????? | | ??????????????????????????????????????????? | | ??????????????????????????????????????????? | | ??????????????????????????????????????????? | | ??????????????????????????????????????????? | | ??????????????????????????????????????????? | | ??????????????????????????????????????????? | | ??????????????????????????????????????????? | | ??????????????????????????????????????????? | | ??????????????????????????? ?????????## | | ??????????????????????????# #????????# | | ??????????????????????????# #????????# | | ???????????????????????? # ##+####### | | ????????????????????????? # | | ??????????????????????????/ | | ??????????????????????????# """ | | ??????????????????????????# """ | | ??????????????????????????# """ | | ??????????????????????????# | | ??????????????????????????# """ | | ?????????????????########## """ | | ?????????????????# # """ | | ?????????????????# # | | ??????????## ### # """ | | ?????+ Y /@ + """ | | ??????????## ### !! t# """ | | ?????????????????#! !! !# | | ?????????????????# ! ########### | | ?????????????????# #?????????# | | ?????????????????# #?????????# | | ?????????????????######m###?????????# | | ??????????????????????? ???????????# | | ???????????????????????? ??????????# | | ???????????????????????? ?????????# "" | | ????????????????????????? ???????? "" | | ?????????????????????????? ??????? "" | | ??????????????????????????? ???????? ? | | ???????????????????????????????????? "? | | ???????????????????????????????????? "? | | ????????????????????????????????????? ??? | | ??????????????????????????????????????????? | | ??????????????????????????????????????????? | | ??????????????????????????????????????????? | | ??????????????????????????????????????????? | | ??????????????????????????????????????????? | | ??????????????????????????????????????????? | | ??????????????????????????????????????????? | | ??????????????????????????????????????????? | | ??????????????????????????????????????????? | +----------------------------------------------------+ Best States ------------- Heat Dissipation 37 Energy Generation 29 Energy Capacity 500 Matter Stores 300 Matter Capacity 300 Sight Range 20 Terrain Scan Density 10 Armor Coverage 675 Evasion (%) 50 Launcher Accuracy 30 Recoil Reduction 4 Offensive Hacking 14 Defensive Hacking 14 Relay Coupler Types 5 Relay Coupler Value 101 Authchip Count 3 Item Schematics ----------------- Combat Drone Bay | -7/Data Miner | Free Lgt. Regenerative Plating | -7/Data Miner | Free Cld. Cesium-ion Thruster | -7/Data Miner | Free Gravity Neutralizer | -7/Data Miner | Free Force Rifle | -7/Data Miner | Free Arm. Medium Treads | -7/Data Miner | Free Imp. Component Analysis Suite | -7/Data Miner | Free Adv. Plasma Cannon | -7/Data Miner | Free Dispersion Rifle | -7/Data Miner | Free Hvy. Gauss Cannon | -7/Data Miner | Free Robot Schematics ------------------ R-10 Processor | -7/Data Miner | Free G-47 Trooper | -7/Data Miner | Free H-55 Commando | -7/Data Miner | Free L-41 Fighter | -7/Data Miner | Free H-66 Slayer | -7/Data Miner | Free G-50 Soldier | -7/Data Miner | Free Fabricated ------------ Nothing Alien Tech Used ----------------- None Achievements -------------- None Challenges ------------ None Game ------ Seed MappingThermalPurifier Manual? 0 Play Time 02:21:58 Cumulative 156.5 hours Start 2024.05.05 @ 12:59:28 End 2024.05.05 @ 15:39:03 Sessions 1 Manual Loads 0 Difficulty Rogue Special Mode None Game No. 154 Rogue 149 Adventurer 5 Explorer 0 Win Type - Total 3 Types 2/0/0/1/0/0/0/0/0 Lore% 53 Gallery% 71 Achievement% 54 Wizard Run 0 Options --------- Layout 1 ASCII 0 Keyboard 0 Movement Arrows Keybinds 0 Fullscreen 1 Font 24/Terminus Map View 50x35 Zoom Use 0% Tactical HUD 1 Map Filters NONE Filters NONE Steam 1 RUN: 1d120291-48d7-46cb-b12b-52329a5b2d3c